fUSD/lending_fUSD_20250904
["ID","MTS","AMOUNT","RATE_DAILY","PERIOD"]
[383563271,1756990323998,-1684.531585,0.00024658,7]
[383563272,1756990324008,-151.0,0.00024658,7]
[383563273,1756990324018,-1684.531585,0.00024658,7]
[383563274,1756990324028,-1684.531585,0.00024658,7]
[383563275,1756990324038,-151.0,0.00024658,7]
[383563276,1756990324048,-151.0,0.00024658,7]
[383563277,1756990324058,-1684.531585,0.00024658,7]
[383563278,1756990324068,-151.0,0.00024658,7]
[383563279,1756990324078,-1684.531585,0.00024658,7]
[383563280,1756990324089,-1684.531585,0.00024658,7]
[383563281,1756990324099,-1684.531585,0.00024658,7]
[383563282,1756990324110,-1684.531585,0.00024658,7]
[383563283,1756990324120,-151.0,0.00024658,7]
[383563284,1756990324130,-1684.531585,0.00024658,7]
[383563285,1756990324140,-268.096635,0.00024658,7]
[383563286,1756990324152,-1684.531593,0.00024658,7]
[383563287,1756990324162,-172.36023,0.00024658,7]
[383563288,1756990324172,-172.36023,0.00024658,7]
[383563289,1756990324182,-4654.887139,0.00024658,7]
[383563290,1756990324193,-172.36023,0.00024658,7]
[383563291,1756990324203,-151.0,0.00024658,7]
[383563292,1756990324212,-4654.887139,0.00024658,7]
[383563293,1756990324223,-172.36023,0.00024658,7]
[383563294,1756990324233,-199.682532,0.00024658,7]
[383563295,1756990324243,-4654.887139,0.00024658,7]
[383563296,1756990324253,-172.36023,0.00024658,7]
[383563297,1756990324264,-4654.887139,0.00024658,7]
[383563298,1756990324274,-172.36023,0.00024658,7]
[383563299,1756990324285,-4654.887139,0.00024658,7]
[383563300,1756990324295,-172.36023,0.00024658,7]
[383563301,1756990324306,-4654.887139,0.00024658,7]
[383563302,1756990324316,-172.36023,0.00024658,7]
[383563303,1756990324326,-4654.887139,0.00024658,7]
[383563304,1756990324336,-172.36023,0.00024658,7]
[383563305,1756990324346,-4654.887139,0.00024658,7]
[383563306,1756990324357,-172.36023,0.00024658,7]
[383563307,1756990324367,-4654.887139,0.00024658,7]
[383563308,1756990324379,-172.36023,0.00024658,7]
[383563309,1756990324389,-4654.887139,0.00024658,7]
[383563310,1756990324402,-172.36023,0.00024658,7]
[383563311,1756990324412,-172.36023,0.00024658,7]
[383563312,1756990324422,-4654.887139,0.00024658,7]
[383563313,1756990324433,-172.36023,0.00024658,7]
[383563314,1756990324444,-4654.887139,0.00024658,7]
[383563315,1756990324455,-172.36023,0.00024658,7]
[383563316,1756990324465,-4654.887139,0.00024658,7]
[383563317,1756990324477,-172.36023,0.00024658,7]
[383563318,1756990324487,-4654.887139,0.00024658,7]
[383563319,1756990324498,-172.36023,0.00024658,7]
[383563320,1756990324508,-151.0,0.00024658,7]
[383563321,1756990324519,-4654.887139,0.00024658,7]
[383563322,1756990324529,-172.36023,0.00024658,7]
[383563323,1756990324539,-151.0,0.00024658,7]
[383563324,1756990324549,-4654.887139,0.00024658,7]
[383563325,1756990324559,-4654.887139,0.00024658,7]
[383563326,1756990324570,-172.36023,0.00024658,7]
[383563327,1756990324580,-151.0,0.00024658,7]
[383563328,1756990324591,-172.360228,0.00024658,7]
[383563329,1756990324601,-151.0,0.00024658,7]
[383563330,1756990324611,-4654.887139,0.00024658,7]
[383563331,1756990324621,-151.0,0.00024658,7]
[383563332,1756990324631,-151.0,0.00024658,7]
[383563333,1756990324641,-151.0,0.00024658,7]
[383563334,1756990324654,-151.0,0.00024658,7]
[383563335,1756990324664,-151.0,0.00024658,7]
[383563336,1756990324674,-151.0,0.00024658,7]
[383563337,1756990324685,-4654.887139,0.00024658,7]
[383563338,1756990324696,-151.0,0.00024658,7]
[383563339,1756990324706,-4654.887137,0.00024658,7]
[383563340,1756990324716,-151.0,0.00024658,7]
[383563341,1756990324727,-151.0,0.00024658,7]
[383563342,1756990324738,-151.0,0.00024658,7]
[383563343,1756990324749,-151.0,0.00024658,7]
[383563344,1756990324759,-151.0,0.00024658,7]
[383563345,1756990324770,-151.0,0.00024658,7]
[383563346,1756990324780,-151.0,0.00024658,7]
[383563347,1756990324790,-151.0,0.00024658,7]
[383563348,1756990324800,-151.0,0.00024658,7]
[383563349,1756990324810,-299.120476,0.00024658,7]
[383563350,1756990324820,-151.0,0.00024658,7]
[383563351,1756990324830,-151.0,0.00024658,7]
[383563352,1756990324840,-630.683635,0.00024658,7]
[383563353,1756990324850,-151.0,0.00024658,7]
[383563354,1756990324860,-630.683635,0.00024658,7]
[383563355,1756990324870,-630.683635,0.00024658,7]
[383563356,1756990324880,-630.683635,0.00024658,7]
[383563357,1756990324891,-630.683635,0.00024658,7]
[383563358,1756990324902,-630.683635,0.00024658,7]
[383563359,1756990324912,-630.683635,0.00024658,7]
[383563360,1756990325131,-630.683635,0.00024658,7]
[383563361,1756990325141,-630.683635,0.00024658,7]
[383563362,1756990325152,-630.683635,0.00024658,7]
[383563363,1756990325162,-435.792356,0.00024658,7]
[383563364,1756990325172,-630.683635,0.00024658,7]
[383563365,1756990325182,-435.792356,0.00024658,7]
[383563366,1756990325192,-630.683635,0.00024658,7]
[383563367,1756990325202,-435.792356,0.00024658,7]
[383563368,1756990325212,-630.683635,0.00024658,7]
[383563369,1756990325221,-435.792356,0.00024658,7]
[383563370,1756990325231,-435.792356,0.00024658,7]
[383563371,1756990325241,-435.792356,0.00024658,7]
[383563372,1756990325250,-630.683635,0.00024658,7]
[383563373,1756990325258,-1059.930732,0.00024658,7]
[383563374,1756990325267,-435.792356,0.00024658,7]
[383563375,1756990325276,-630.683635,0.00024658,7]
[383563376,1756990325284,-500.0,0.00024658,2]
[383563377,1756990325293,-3009.67700492,0.000247,7]
[383563378,1756990325302,-3010.21128815,0.000247,7]
[383563379,1756990325311,-5094.02165,0.00024726,30]
[383563380,1756990325320,-400.0,0.00024739,2]
[383563381,1756990325329,-400.0,0.00024739,2]
[383563382,1756990325338,-400.0,0.00024739,2]
[383563383,1756990325347,-400.0,0.00024739,2]
[383563384,1756990325356,-400.0,0.00024739,2]
[383563385,1756990325366,-6679.88,0.00024739,2]
[383563386,1756990325374,-956.54,0.00024739,2]
[383563387,1756990325382,-484.69,0.00024739,2]
[383563388,1756990325391,-471.21,0.00024739,2]
[383563389,1756990325402,-848.28,0.00024739,2]
[383563390,1756990325411,-400.0,0.00024739,2]
[383563391,1756990325421,-876.27,0.00024739,2]
[383563392,1756990325430,-151.0,0.00024748,2]
[383563393,1756990325439,-500.0,0.00024795,2]
[383563394,1756990325449,-150.0,0.00024799,2]
[383563395,1756990325459,-154.69311353,0.00024799,2]
[383563396,1756990325469,-605057.674139,0.000248,2]
[383563397,1756990325478,-206.0,0.0002483,2]
[383563398,1756990325488,-600.0,0.0002485,2]
[383563399,1756990325497,-37501.0,0.00024885,2]
[383563400,1756990325507,-300.0,0.000249,9]
[383563401,1756990325517,-75393.1184522,0.000249,2]
[383563402,1756990325526,-10190.3394796,0.000249,2]
[383563403,1756990325536,-1005.29432484,0.00024912,2]
[383563404,1756990325546,-279.2041641,0.00024912,2]
[383563405,1756990325555,-150.0,0.00024931,2]
[383563406,1756990325565,-422.37,0.00024931,2]
[383563407,1756990325575,-400.0,0.00024931,2]
[383563408,1756990325584,-400.0,0.00024931,2]
[383563409,1756990325594,-492.66,0.00024931,2]
[383563410,1756990325604,-500.6404302,0.00024931,2]
[383563411,1756990325614,-400.0,0.00024931,2]
[383563412,1756990325623,-400.0,0.00024931,2]
[383563413,1756990325633,-482.26593487,0.00024931,2]
[383563414,1756990325643,-400.0,0.00024931,2]
[383563415,1756990325656,-400.0,0.00024931,2]
[383563416,1756990325665,-400.0,0.00024931,2]
[383563417,1756990325675,-159.517876,0.00024931,2]
[383563418,1756990325685,-204.850015,0.00024931,2]
[383563419,1756990325695,-237.602869,0.00024931,2]
[383563420,1756990325705,-400.0,0.00024931,2]
[383563421,1756990325715,-400.0,0.00024931,2]
[383563422,1756990325724,-412.66,0.00024931,2]
[383563423,1756990325734,-761.63,0.00024931,2]
[383563424,1756990325744,-547.73393443,0.00024931,2]
[383563425,1756990325754,-400.0,0.00024931,2]
[383563426,1756990325763,-1219.37,0.00024931,2]
[383563427,1756990325773,-661.99,0.00024931,2]
[383563428,1756990325783,-575.08,0.00024931,2]
[383563429,1756990325792,-400.0,0.00024931,2]
[383563430,1756990325802,-463.74104231,0.00024931,2]
[383563431,1756990325812,-154.0548977,0.00024931,2]
[383563432,1756990325822,-400.0,0.00024931,2]
[383563433,1756990325831,-337.56794399,0.00024931,2]
[383563434,1756990325841,-411.91,0.00024931,2]
[383563435,1756990325850,-400.0,0.00024931,2]
[383563436,1756990325860,-400.0,0.00024931,2]
[383563437,1756990325870,-400.0,0.00024931,2]
[383563438,1756990325880,-452.6231206,0.00024931,2]
[383563439,1756990325889,-400.0,0.00024931,2]
[383563440,1756990325899,-400.0,0.00024931,2]
[383563441,1756990325909,-400.0,0.00024931,2]
[383563442,1756990325919,-475.07127386,0.00024931,2]
[383563443,1756990325929,-400.0,0.00024931,2]
[383563444,1756990325943,-400.0,0.00024931,2]
[383563445,1756990325952,-400.0,0.00024931,2]
[383563446,1756990325962,-400.0,0.00024931,2]
[383563447,1756990325974,-400.0,0.00024931,2]
[383563448,1756990325984,-400.0,0.00024931,2]
[383563449,1756990325993,-400.0,0.00024931,2]
[383563450,1756990326004,-402.8,0.00024931,2]
[383563451,1756990326014,-400.0,0.00024931,2]
[383563452,1756990326024,-414.4,0.00024931,2]
[383563453,1756990326034,-444.09492114,0.00024931,2]
[383563454,1756990326043,-400.0,0.00024931,2]
[383563455,1756990326053,-400.0,0.00024931,2]
[383563456,1756990326063,-361.54991419,0.00024931,2]
[383563457,1756990326072,-296.38,0.00024931,2]
[383563458,1756990326082,-400.0,0.00024931,2]
[383563459,1756990326091,-400.0,0.00024931,2]
[383563460,1756990326100,-400.0,0.00024931,2]
[383563461,1756990326110,-400.0,0.00024931,2]
[383563462,1756990326120,-400.0,0.00024931,2]
[383563463,1756990326129,-400.0,0.00024931,2]
[383563464,1756990326139,-400.0,0.00024931,2]
[383563465,1756990326149,-463.59,0.00024931,2]
[383563466,1756990326159,-400.0,0.00024931,2]
[383563467,1756990326168,-400.0,0.00024931,2]
[383563468,1756990326178,-468.27674875,0.00024931,2]
[383563469,1756990326187,-423.94,0.00024931,2]
[383563470,1756990326196,-495.23,0.00024931,2]
[383563471,1756990326206,-565.94,0.00024931,2]
[383563472,1756990326216,-400.0,0.00024931,2]
[383563473,1756990326225,-400.0,0.00024931,2]
[383563474,1756990326235,-164.59841177,0.00024931,2]
[383563475,1756990326244,-400.0,0.00024931,2]
[383563476,1756990326254,-400.0,0.00024931,2]
[383563477,1756990326263,-466.1,0.00024931,2]
[383563478,1756990326273,-400.0,0.00024931,2]
[383563479,1756990326282,-400.0,0.00024931,2]
[383563480,1756990326292,-456.03,0.00024931,2]
[383563481,1756990326301,-400.0,0.00024931,2]
[383563482,1756990326311,-400.0,0.00024931,2]
[383563483,1756990326321,-280.70528442,0.00024931,2]
[383563484,1756990326331,-400.0,0.00024931,2]
[383563485,1756990326340,-400.0,0.00024931,2]
[383563486,1756990326350,-400.0,0.00024931,2]
[383563487,1756990326360,-400.0,0.00024931,2]
[383563488,1756990326369,-945.14,0.00024931,2]
[383563489,1756990326379,-400.0,0.00024931,2]
[383563490,1756990326390,-400.0,0.00024931,2]
[383563491,1756990326401,-371.61139558,0.00024931,2]
[383563492,1756990326411,-400.0,0.00024931,2]
[383563493,1756990326420,-400.0,0.00024931,2]
[383563494,1756990326429,-953.11,0.00024931,2]
[383563495,1756990326439,-400.0,0.00024931,2]
[383563496,1756990326449,-400.0,0.00024931,2]
[383563497,1756990326458,-821.03,0.00024931,2]
[383563498,1756990326468,-326.9987373,0.00024931,2]
[383563499,1756990326477,-1693.2,0.00024931,2]
[383563500,1756990326486,-1079.3,0.00024931,2]
[383563501,1756990326495,-400.0,0.00024931,2]
[383563502,1756990326504,-624.18,0.00024931,2]
[383563503,1756990326514,-400.0,0.00024931,2]
[383563504,1756990326523,-400.0,0.00024931,2]
[383563505,1756990326533,-2782.05,0.00024931,2]
[383563506,1756990326543,-400.0,0.00024931,2]
[383563507,1756990326553,-725.37,0.00024931,2]
[383563508,1756990326563,-421.94,0.00024931,2]
[383563509,1756990326573,-685.21,0.00024931,2]
[383563510,1756990326582,-400.0,0.00024931,2]
[383563511,1756990326591,-400.0,0.00024931,2]
[383563512,1756990326601,-493.22525239,0.00024931,2]
[383563513,1756990326611,-1587.17,0.00024931,2]
[383563514,1756990326620,-931.71,0.00024931,2]
[383563515,1756990326631,-400.0,0.00024931,2]
[383563516,1756990326641,-2135.57,0.00024931,2]
[383563517,1756990326650,-1227.09,0.00024931,2]
[383563518,1756990326660,-625.05,0.00024931,2]
[383563519,1756990326669,-474.56,0.00024931,2]
[383563520,1756990326679,-749.93,0.00024931,2]
[383563521,1756990326689,-400.0,0.00024931,2]
[383563522,1756990326700,-509.67060788,0.00024931,2]
[383563523,1756990326709,-638.66,0.00024931,2]
[383563524,1756990326719,-508.97,0.00024931,2]
[383563525,1756990326729,-400.0,0.00024931,2]
[383563526,1756990326738,-400.0,0.00024931,2]
[383563527,1756990326747,-400.0,0.00024931,2]
[383563528,1756990326757,-400.0,0.00024931,2]
[383563529,1756990326766,-3593.96,0.00024931,2]
[383563530,1756990326776,-295.43334129,0.00024931,2]
[383563531,1756990326786,-1070.95,0.00024931,2]
[383563532,1756990326795,-400.0,0.00024931,2]
[383563533,1756990326804,-3019.97,0.00024931,2]
[383563534,1756990326814,-2175.07,0.00024931,2]
[383563535,1756990326823,-400.0,0.00024931,2]
[383563536,1756990326833,-400.0,0.00024931,2]
[383563537,1756990326843,-400.0,0.00024931,2]
[383563538,1756990326852,-400.0,0.00024931,2]
[383563539,1756990326862,-400.0,0.00024931,2]
[383563540,1756990326871,-371.64814265,0.00024931,2]
[383563541,1756990326881,-2082.36,0.00024931,2]
[383563542,1756990326891,-400.0,0.00024931,2]
[383563543,1756990326901,-400.0,0.00024931,2]
[383563544,1756990326910,-970.38,0.00024931,2]
[383563545,1756990326919,-1127.96,0.00024931,2]
[383563546,1756990326932,-2243.08,0.00024931,2]
[383563547,1756990326943,-176.02535458,0.00024931,2]
[383563548,1756990326952,-1735.62,0.00024931,2]
[383563549,1756990326963,-1045.07,0.00024931,2]
[383563550,1756990326972,-400.0,0.00024931,2]
[383563551,1756990326982,-731.72,0.00024931,2]
[383563552,1756990326991,-400.0,0.00024931,2]
[383563553,1756990327000,-400.0,0.00024931,2]
[383563554,1756990327010,-998.96,0.00024931,2]
[383563555,1756990327020,-534.80211277,0.00024931,2]
[383563556,1756990327030,-400.0,0.00024931,2]
[383563557,1756990327040,-709.73,0.00024931,2]
[383563558,1756990327051,-400.0,0.00024931,2]
[383563559,1756990327062,-2831.28,0.00024931,2]
[383563560,1756990327072,-3039.71,0.00024931,2]
[383563561,1756990327082,-898.29,0.00024931,2]
[383563562,1756990327092,-1689.73,0.00024931,2]
[383563563,1756990327101,-454.51,0.00024931,2]
[383563564,1756990327111,-449.75,0.00024931,2]
[383563565,1756990327120,-402.85,0.00024931,2]
[383563566,1756990327129,-435.81,0.00024931,2]
[383563567,1756990327139,-579.58,0.00024931,2]
[383563568,1756990327150,-400.0,0.00024931,2]
[383563569,1756990327159,-400.0,0.00024931,2]
[383563570,1756990327169,-996.93,0.00024931,2]
[383563571,1756990327178,-1061.82,0.00024931,2]
[383563572,1756990327188,-400.0,0.00024931,2]
[383563573,1756990327198,-608.48,0.00024931,2]
[383563574,1756990327208,-1216.81,0.00024931,2]
[383563575,1756990327217,-2520.02,0.00024931,2]
[383563576,1756990327226,-400.0,0.00024931,2]
[383563577,1756990327236,-1569.91,0.00024931,2]
[383563578,1756990327246,-400.0,0.00024931,2]
[383563579,1756990327255,-1782.09,0.00024931,2]
[383563580,1756990327265,-400.0,0.00024931,2]
[383563581,1756990327274,-400.0,0.00024931,2]
[383563582,1756990327283,-1565.66,0.00024931,2]
[383563583,1756990327293,-967.5,0.00024931,2]
[383563584,1756990327303,-1736.13,0.00024931,2]
[383563585,1756990327313,-841.07,0.00024931,2]
[383563586,1756990327322,-400.0,0.00024931,2]
[383563587,1756990327333,-400.0,0.00024931,2]
[383563588,1756990327343,-400.0,0.00024931,2]
[383563589,1756990327354,-400.0,0.00024931,2]
[383563590,1756990327364,-941.19,0.00024931,2]
[383563591,1756990327374,-294.2595518,0.00024931,2]
[383563592,1756990327384,-1999.99,0.00024931,2]
[383563593,1756990327394,-656.44,0.00024931,2]
[383563594,1756990327404,-400.0,0.00024931,2]
[383563595,1756990327413,-400.0,0.00024931,2]
[383563596,1756990327423,-400.0,0.00024931,2]
[383563597,1756990327433,-400.0,0.00024931,2]
[383563598,1756990327514,-1565.3,0.00024931,2]
[383563599,1756990327525,-1135.36,0.00024931,2]
[383563600,1756990327534,-400.0,0.00024931,2]
[383563601,1756990327544,-455.15,0.00024931,2]
[383563602,1756990327554,-3100.45,0.00024931,2]
[383563603,1756990327564,-708.51,0.00024931,2]
[383563604,1756990327575,-400.0,0.00024931,2]
[383563605,1756990327585,-945.65,0.00024931,2]
[383563606,1756990327594,-459.56,0.00024931,2]
[383563607,1756990327604,-742.75,0.00024931,2]
[383563608,1756990327616,-400.0,0.00024931,2]
[383563609,1756990327626,-400.0,0.00024931,2]
[383563610,1756990327635,-500.0,0.00024932,2]
[383563611,1756990327645,-1022.0,0.0002495,2]
[383563612,1756990327655,-2980.86100811,0.00025,2]
[383563613,1756990327664,-3167.08733849,0.00025,2]
[383563614,1756990327674,-15024.15172716,0.00025,2]
[383563615,1756990327684,-1042.25053594,0.00025,2]
[383563616,1756990327693,-163.81822261,0.00025,2]
[383563617,1756990327703,-200000.0,0.00025,2]
[383563618,1756990327713,-357891.16817591,0.00025,2]
[383563619,1756990327723,-203.22947992,0.00025,2]
[383563620,1756990327732,-1747.89193446,0.00025,2]
[383563621,1756990327743,-307.90183539,0.00025,2]
[383563622,1756990327752,-360.0,0.00025,2]
[383563623,1756990327761,-160.0,0.00025,4]
[383563624,1756990327770,-2000.0,0.00025,2]
[383563625,1756990327783,-1282.67972615,0.00025,4]
[383563626,1756990327792,-11468.11211535,0.00025,2]
[383563627,1756990327802,-1022.26,0.00025,7]
[383563628,1756990327811,-15000.0,0.0002501,2]
[383563629,1756990327821,-391.30690204,0.00025013,2]
[383563630,1756990327830,-400.0,0.00025013,2]
[383563631,1756990327839,-400.0,0.00025013,2]
[383563632,1756990327848,-450.75,0.00025013,2]
[383563633,1756990327857,-400.0,0.00025013,2]
[383563634,1756990327866,-6679.88,0.00025013,2]
[383563635,1756990327876,-956.54,0.00025013,2]
[383563636,1756990327885,-484.69,0.00025013,2]
[383563637,1756990327894,-471.21,0.00025013,2]
[383563638,1756990327905,-848.28,0.00025013,2]
[383563639,1756990327914,-400.0,0.00025013,2]
[383563640,1756990327924,-876.27,0.00025013,2]
[383563641,1756990327936,-500.0,0.00025069,2]
[383563642,1756990327946,-2500.0,0.00025099,7]
[383563643,1756990327956,-200.0,0.000251,7]
[383563644,1756990327965,-250.0,0.000251,2]
[383563645,1756990327974,-200.0,0.000251,7]
[383563646,1756990327983,-2000.0,0.000251,2]
[383563647,1756990327993,-1570.0,0.000251,2]
[383563648,1756990328003,-2500.0,0.00025108,7]
[383563649,1756990328012,-2500.0,0.00025117,7]
[383563650,1756990328022,-2500.0,0.00025126,7]
[383563651,1756990328031,-2500.0,0.00025126,7]
[383563652,1756990328040,-2500.0,0.00025135,7]
[383563653,1756990328049,-2500.0,0.00025135,7]
[383563654,1756990328058,-2500.0,0.00025135,7]
[383563655,1756990328067,-2500.0,0.00025143,7]
[383563656,1756990328075,-2500.0,0.00025143,7]
[383563657,1756990328082,-2500.0,0.00025143,7]
[383563658,1756990328090,-2500.0,0.00025152,7]
[383563659,1756990328099,-2500.0,0.00025152,7]
[383563660,1756990328107,-2500.0,0.00025152,7]
[383563661,1756990328115,-2500.0,0.00025161,7]
[383563662,1756990328124,-2500.0,0.00025161,7]
[383563663,1756990328132,-2500.0,0.00025161,7]
[383563664,1756990328141,-2500.0,0.0002517,7]
[383563665,1756990328149,-2500.0,0.0002517,7]
[383563666,1756990328157,-2500.0,0.0002517,7]
[383563667,1756990328165,-2500.0,0.00025179,7]
[383563668,1756990328173,-2500.0,0.00025179,7]
[383563669,1756990328181,-2500.0,0.00025179,7]
[383563670,1756990328190,-2500.0,0.00025187,7]
[383563671,1756990328200,-2500.0,0.00025187,7]
[383563672,1756990328209,-2500.0,0.00025187,7]
[383563673,1756990328219,-2500.0,0.00025196,7]
[383563674,1756990328228,-2500.0,0.00025196,7]
[383563675,1756990328237,-2500.0,0.00025196,7]
[383563676,1756990328246,-2500.0,0.00025205,7]
[383563677,1756990328255,-2500.0,0.00025205,7]
[383563678,1756990328265,-422.37,0.00025205,2]
[383563679,1756990328274,-400.0,0.00025205,2]
[383563680,1756990328283,-400.0,0.00025205,2]
[383563681,1756990328292,-492.66,0.00025205,2]
[383563682,1756990328302,-400.0,0.00025205,2]
[383563683,1756990328311,-400.0,0.00025205,2]
[383563684,1756990328321,-400.0,0.00025205,2]
[383563685,1756990328331,-400.0,0.00025205,2]
[383563686,1756990328340,-400.0,0.00025205,2]
[383563687,1756990328349,-204.850015,0.00025205,2]
[383563688,1756990328358,-237.602869,0.00025205,2]
[383563689,1756990328368,-467.23819946,0.00025205,2]
[383563690,1756990328377,-391.48472803,0.00025205,2]
[383563691,1756990328386,-412.66,0.00025205,2]
[383563692,1756990328397,-761.63,0.00025205,2]
[383563693,1756990328410,-1219.37,0.00025205,2]
[383563694,1756990328420,-400.0,0.00025205,2]
[383563695,1756990328429,-661.99,0.00025205,2]
[383563696,1756990328439,-575.08,0.00025205,2]
[383563697,1756990328448,-400.0,0.00025205,2]
[383563698,1756990328458,-400.0,0.00025205,2]
[383563699,1756990328467,-411.91,0.00025205,2]
[383563700,1756990328476,-400.0,0.00025205,2]
[383563701,1756990328486,-400.0,0.00025205,2]
[383563702,1756990328495,-400.0,0.00025205,2]
[383563703,1756990328504,-512.0765933,0.00025205,2]
[383563704,1756990328513,-400.0,0.00025205,2]
[383563705,1756990328522,-400.0,0.00025205,2]
[383563706,1756990328531,-374.51346551,0.00025205,2]
[383563707,1756990328541,-400.0,0.00025205,2]
[383563708,1756990328550,-400.0,0.00025205,2]
[383563709,1756990328560,-400.0,0.00025205,2]
[383563710,1756990328569,-400.0,0.00025205,2]
[383563711,1756990328579,-400.0,0.00025205,2]
[383563712,1756990328588,-315.57621554,0.00025205,2]
[383563713,1756990328598,-402.8,0.00025205,2]
[383563714,1756990328607,-400.0,0.00025205,2]
[383563715,1756990328616,-414.4,0.00025205,2]
[383563716,1756990328625,-400.0,0.00025205,2]
[383563717,1756990328635,-400.0,0.00025205,2]
[383563718,1756990328645,-193.9846599,0.00025205,2]
[383563719,1756990328658,-400.0,0.00025205,2]
[383563720,1756990328670,-400.0,0.00025205,2]
[383563721,1756990328680,-524.07118939,0.00025205,2]
[383563722,1756990328689,-400.0,0.00025205,2]
[383563723,1756990328699,-438.60960597,0.00025205,2]
[383563724,1756990328709,-400.0,0.00025205,2]
[383563725,1756990328719,-463.59,0.00025205,2]
[383563726,1756990328728,-400.0,0.00025205,2]
[383563727,1756990328738,-400.0,0.00025205,2]
[383563728,1756990328747,-423.94,0.00025205,2]
[383563729,1756990328757,-495.23,0.00025205,2]
[383563730,1756990328775,-565.94,0.00025205,2]
[383563731,1756990328785,-400.0,0.00025205,2]
[383563732,1756990328795,-400.0,0.00025205,2]
[383563733,1756990328804,-400.0,0.00025205,2]
[383563734,1756990328814,-400.0,0.00025205,2]
[383563735,1756990328824,-466.1,0.00025205,2]
[383563736,1756990328834,-400.0,0.00025205,2]
[383563737,1756990328843,-400.0,0.00025205,2]
[383563738,1756990328853,-456.03,0.00025205,2]
[383563739,1756990328863,-400.0,0.00025205,2]
[383563740,1756990328872,-509.46565031,0.00025205,2]
[383563741,1756990328882,-400.0,0.00025205,2]
[383563742,1756990328891,-400.0,0.00025205,2]
[383563743,1756990328901,-400.0,0.00025205,2]
[383563744,1756990328913,-216.81271001,0.00025205,2]
[383563745,1756990328922,-945.14,0.00025205,2]
[383563746,1756990328936,-400.0,0.00025205,2]
[383563747,1756990328945,-400.0,0.00025205,2]
[383563748,1756990328955,-400.0,0.00025205,2]
[383563749,1756990328965,-400.0,0.00025205,2]
[383563750,1756990328975,-953.11,0.00025205,2]
[383563751,1756990328987,-400.0,0.00025205,2]
[383563752,1756990328999,-400.0,0.00025205,2]
[383563753,1756990329010,-2500.0,0.00025205,7]
[383563754,1756990329019,-821.03,0.00025205,2]
[383563755,1756990329030,-1693.2,0.00025205,2]
[383563756,1756990329039,-1079.3,0.00025205,2]
[383563757,1756990329048,-400.0,0.00025205,2]
[383563758,1756990329057,-624.18,0.00025205,2]
[383563759,1756990329066,-400.0,0.00025205,2]
[383563760,1756990329075,-400.0,0.00025205,2]
[383563761,1756990329085,-2782.05,0.00025205,2]
[383563762,1756990329094,-400.0,0.00025205,2]
[383563763,1756990329104,-725.37,0.00025205,2]
[383563764,1756990329114,-421.94,0.00025205,2]
[383563765,1756990329123,-685.21,0.00025205,2]
[383563766,1756990329132,-484.99572683,0.00025205,2]
[383563767,1756990329141,-400.0,0.00025205,2]
[383563768,1756990329151,-1587.17,0.00025205,2]
[383563769,1756990329160,-931.71,0.00025205,2]
[383563770,1756990329170,-400.0,0.00025205,2]